[Event "*** Titled Tuesday Blitz"]
[Site "Chess.com"]
[Date "2019.12.03"]
[Round "1"]
[White "NemtsevIgor"]
[Black "Pultis"]
[Result "0-1"]
[WhiteElo "2327"]
[BlackElo "2681"]
[TimeControl "180+2"]
[EndTime "13:05:28 PST"]
[Termination "Pultis won by resignation"]

1. d4 {[%clk 0:02:59.3]} 1... Nf6 {[%clk 0:03:00.8]} 2. Bf4 {[%clk 0:02:59.1]}
2... g6 {[%clk 0:03:01.2]} 3. e3 {[%clk 0:03:00.2]} 3... Bg7 {[%clk 0:03:02.3]}
4. Nf3 {[%clk 0:03:01.5]} 4... O-O {[%clk 0:03:03.2]} 5. Be2 {[%clk 0:03:02.7]}
5... d6 {[%clk 0:03:04.1]} 6. O-O {[%clk 0:03:03.4]} 6... Nbd7 {[%clk
0:03:05.5]} 7. c4 {[%clk 0:02:58.9]} 7... b6 {[%clk 0:03:05.5]} 8. Nc3 {[%clk
0:02:59.4]} 8... Bb7 {[%clk 0:03:06.3]} 9. h3 {[%clk 0:02:58.3]} 9... Re8 {[%clk
0:03:07.6]} 10. Bh2 {[%clk 0:02:58.7]} 10... e5 {[%clk 0:03:06.1]} 11. b4 {[%clk
0:02:51.2]} 11... exd4 {[%clk 0:03:03.5]} 12. exd4 {[%clk 0:02:50.4]} 12... Ne4
{[%clk 0:03:04.1]} 13. Nxe4 {[%clk 0:02:48]} 13... Bxe4 {[%clk 0:03:05.6]} 14.
Rc1 {[%clk 0:02:31.2]} 14... Qc8 {[%clk 0:02:55.4]} 15. Nd2 {[%clk 0:02:08.7]}
15... Bb7 {[%clk 0:02:53.7]} 16. d5 {[%clk 0:02:05.5]} 16... a5 {[%clk
0:02:54.8]} 17. a3 {[%clk 0:02:00.9]} 17... Bb2 {[%clk 0:02:55.4]} 18. Rb1
{[%clk 0:01:59.6]} 18... Bxa3 {[%clk 0:02:55.4]} 19. bxa5 {[%clk 0:01:57.1]}
19... Rxa5 {[%clk 0:02:56.9]} 20. Nb3 {[%clk 0:01:55.6]} 20... Ra8 {[%clk
0:02:56.5]} 21. Bf4 {[%clk 0:01:51.6]} 21... Qd8 {[%clk 0:02:44.2]} 22. Bd3
{[%clk 0:01:40.4]} 22... Qf6 {[%clk 0:02:42.9]} 23. Qd2 {[%clk 0:01:39.8]} 23...
Ne5 {[%clk 0:02:38.9]} 24. Bg5 {[%clk 0:01:36.8]} 24... Qg7 {[%clk 0:02:35.4]}
25. f4 {[%clk 0:01:26]} 25... Nxd3 {[%clk 0:02:35.3]} 26. Qxd3 {[%clk
0:01:27.3]} 26... Bc8 {[%clk 0:02:36.8]} 27. Nd4 {[%clk 0:01:18.7]} 27... Bc5
{[%clk 0:02:36.9]} 28. Rbd1 {[%clk 0:01:14.3]} 28... Bf5 {[%clk 0:02:32.8]} 29.
Qd2 {[%clk 0:01:09.6]} 29... Re4 {[%clk 0:02:33.5]} 0-1

[Event "*** Titled Tuesday Blitz"]
[Site "Chess.com"]
[Date "2019.12.03"]
[Round "1"]
[White "LastHeroJr"]
[Black "HrvojeZagreb"]
[Result "0-1"]
[WhiteElo "2555"]
[BlackElo "2214"]
[TimeControl "180+2"]
[EndTime "13:05:34 PST"]
[Termination "HrvojeZagreb won by resignation"]

1. e4 {[%clk 0:02:59.3]} 1... e6 {[%clk 0:03:00.8]} 2. d4 {[%clk 0:02:59.9]}
2... d5 {[%clk 0:03:02]} 3. Nd2 {[%clk 0:03:01.4]} 3... dxe4 {[%clk 0:03:03.3]}
4. Nxe4 {[%clk 0:03:01.9]} 4... Nd7 {[%clk 0:03:04.6]} 5. Nf3 {[%clk 0:03:02.3]}
5... Ngf6 {[%clk 0:03:05.8]} 6. Bd3 {[%clk 0:03:00.9]} 6... b6 {[%clk 0:03:05]}
7. O-O {[%clk 0:02:53]} 7... Bb7 {[%clk 0:03:06]} 8. Qe2 {[%clk 0:02:47.9]} 8...
Nxe4 {[%clk 0:02:59.2]} 9. Bxe4 {[%clk 0:02:48.4]} 9... Bxe4 {[%clk 0:03:01.1]}
10. Qxe4 {[%clk 0:02:50]} 10... Bd6 {[%clk 0:03:02.6]} 11. Bg5 {[%clk
0:02:40.7]} 11... Nf6 {[%clk 0:02:51.6]} 12. Bxf6 {[%clk 0:02:23.7]} 12... gxf6
{[%clk 0:02:51]} 13. d5 {[%clk 0:02:24.9]} 13... e5 {[%clk 0:02:48.4]} 14. Nh4
{[%clk 0:02:24.3]} 14... Qd7 {[%clk 0:02:46.8]} 15. Nf5 {[%clk 0:02:22.4]} 15...
O-O-O {[%clk 0:02:46.4]} 16. a4 {[%clk 0:02:09.8]} 16... a5 {[%clk 0:02:45.9]}
17. c3 {[%clk 0:02:07.5]} 17... Rhg8 {[%clk 0:02:40.4]} 18. h4 {[%clk
0:02:07.9]} 18... h5 {[%clk 0:02:37.1]} 19. f3 {[%clk 0:02:08.1]} 19... Bc5+
{[%clk 0:02:31.4]} 20. Kh1 {[%clk 0:02:08.8]} 20... Qxd5 {[%clk 0:02:32.3]} 21.
Qe2 {[%clk 0:02:09.9]} 21... Qd3 {[%clk 0:02:25.1]} 22. Rae1 {[%clk 0:01:53.2]}
22... Qxf5 {[%clk 0:02:19.9]} 23. Qa6+ {[%clk 0:01:52.6]} 23... Kb8 {[%clk
0:02:14.8]} 24. b4 {[%clk 0:01:53.6]} 24... axb4 {[%clk 0:02:15.6]} 25. a5
{[%clk 0:01:52.8]} 25... Qc8 {[%clk 0:02:15.4]} 26. Qb5 {[%clk 0:01:53]} 26...
bxc3 {[%clk 0:02:10.7]} 27. Rc1 {[%clk 0:01:33.6]} 27... Rd2 {[%clk 0:01:59.8]}
0-1

[Event "*** Titled Tuesday Blitz"]
[Site "Chess.com"]
[Date "2019.12.03"]
[Round "1"]
[White "enriquetejedor"]
[Black "Konavets"]
[Result "0-1"]
[WhiteElo "2472"]
[BlackElo "2901"]
[TimeControl "180+2"]
[EndTime "13:05:38 PST"]
[Termination "Konavets won by resignation"]

1. e4 {[%clk 0:02:41.8]} 1... c6 {[%clk 0:02:59.1]} 2. Nc3 {[%clk 0:02:41]} 2...
d5 {[%clk 0:03:00.3]} 3. Nf3 {[%clk 0:02:42.9]} 3... Nf6 {[%clk 0:03:01.4]} 4.
e5 {[%clk 0:02:42.2]} 4... Ne4 {[%clk 0:03:02.6]} 5. Ne2 {[%clk 0:02:43.4]} 5...
Qb6 {[%clk 0:03:03.2]} 6. d4 {[%clk 0:02:45]} 6... e6 {[%clk 0:03:03.4]} 7. Nfg1
{[%clk 0:02:45.3]} 7... f6 {[%clk 0:03:04.3]} 8. f3 {[%clk 0:02:45.5]} 8... Ng5
{[%clk 0:03:05.5]} 9. f4 {[%clk 0:02:46.9]} 9... Ne4 {[%clk 0:03:06]} 10. Nf3
{[%clk 0:02:47.7]} 10... f5 {[%clk 0:03:07]} 11. Rg1 {[%clk 0:02:44.6]} 11... c5
{[%clk 0:03:08.3]} 12. g4 {[%clk 0:02:44.9]} 12... Nc6 {[%clk 0:03:06.8]} 13.
gxf5 {[%clk 0:02:45.7]} 13... exf5 {[%clk 0:03:08.7]} 14. c3 {[%clk 0:02:45.3]}
14... Be6 {[%clk 0:03:09.4]} 15. Ng5 {[%clk 0:02:45.4]} 15... cxd4 {[%clk
0:03:05.9]} 16. Nxe6 {[%clk 0:02:14]} 16... dxc3 {[%clk 0:02:59.9]} 17. Qxd5
{[%clk 0:02:08.2]} 17... cxb2 {[%clk 0:02:56.9]} 18. Nxg7+ {[%clk 0:00:55.2]}
18... Bxg7 {[%clk 0:02:54.6]} 19. Qe6+ {[%clk 0:00:52.3]} 19... Ne7 {[%clk
0:02:48.9]} 20. Qxb6 {[%clk 0:00:51.1]} 20... bxa1=Q {[%clk 0:02:49.8]} 21. Qxb7
{[%clk 0:00:45.2]} 21... Rc8 {[%clk 0:02:50.4]} 22. Qb5+ {[%clk 0:00:07.8]}
22... Kf8 {[%clk 0:02:50.5]} 23. Qb2 {[%clk 0:00:05.7]} 23... Qxb2 {[%clk
0:02:50.5]} 24. Bxb2 {[%clk 0:00:07.6]} 24... Rg8 {[%clk 0:02:50.8]} 25. Nd4
{[%clk 0:00:08.3]} 25... Bh6 {[%clk 0:02:48]} 26. Rxg8+ {[%clk 0:00:03]} 26...
Kxg8 {[%clk 0:02:48.9]} 27. Ba6 {[%clk 0:00:04.7]} 27... Rb8 {[%clk 0:02:39.3]}
28. Bc4+ {[%clk 0:00:04]} 28... Kh8 {[%clk 0:02:38.4]} 29. Ba1 {[%clk
0:00:03.6]} 29... Rb1+ {[%clk 0:02:38.6]} 30. Ke2 {[%clk 0:00:04.7]} 30... Rxa1
{[%clk 0:02:40.5]} 31. Kf3 {[%clk 0:00:03]} 31... Nd2+ {[%clk 0:02:39.8]} 0-1

[Event "*** Titled Tuesday Blitz"]
[Site "Chess.com"]
[Date "2019.12.03"]
[Round "1"]
[White "Vuks91"]
[Black "FrogMist"]
[Result "1-0"]
[WhiteElo "2629"]
[BlackElo "2287"]
[TimeControl "180+2"]
[EndTime "13:05:46 PST"]
[Termination "Vuks91 won by resignation"]

1. e4 {[%clk 0:03:01.9]} 1... e5 {[%clk 0:03:01.1]} 2. Nf3 {[%clk 0:03:02.3]}
2... Nc6 {[%clk 0:03:02.7]} 3. Bc4 {[%clk 0:03:03.1]} 3... Bc5 {[%clk
0:03:03.5]} 4. c3 {[%clk 0:03:02.7]} 4... Nf6 {[%clk 0:03:03.7]} 5. d3 {[%clk
0:03:03.5]} 5... O-O {[%clk 0:03:03.9]} 6. a4 {[%clk 0:03:02.6]} 6... a6 {[%clk
0:02:57.6]} 7. O-O {[%clk 0:02:56.8]} 7... d5 {[%clk 0:02:56.9]} 8. exd5 {[%clk
0:02:58.7]} 8... Nxd5 {[%clk 0:02:58.4]} 9. a5 {[%clk 0:02:55.8]} 9... Kh8
{[%clk 0:02:24.7]} 10. Bb3 {[%clk 0:02:34.1]} 10... f6 {[%clk 0:02:14.1]} 11.
Re1 {[%clk 0:02:24]} 11... Be6 {[%clk 0:01:57.3]} 12. d4 {[%clk 0:02:21.5]}
12... Ba7 {[%clk 0:01:58.5]} 13. c4 {[%clk 0:02:20.5]} 13... Bg4 {[%clk
0:01:41.6]} 14. cxd5 {[%clk 0:02:14.9]} 14... Nxd4 {[%clk 0:01:42.9]} 15. Nbd2
{[%clk 0:02:11.2]} 15... Re8 {[%clk 0:01:21.4]} 16. h3 {[%clk 0:02:08.1]} 16...
Bh5 {[%clk 0:01:21.9]} 17. g4 {[%clk 0:02:04.8]} 17... Bg6 {[%clk 0:01:22.9]}
18. Nxd4 {[%clk 0:02:06]} 18... exd4 {[%clk 0:01:21.5]} 19. Nf1 {[%clk 0:02:01]}
19... Qd6 {[%clk 0:01:20.5]} 20. Bd2 {[%clk 0:01:46.7]} 20... c5 {[%clk
0:01:19.8]} 21. Bc4 {[%clk 0:01:45.3]} 21... Rad8 {[%clk 0:01:08.4]} 22. Qf3
{[%clk 0:01:40.6]} 22... Bb8 {[%clk 0:01:08]} 23. b3 {[%clk 0:01:36.6]} 23... h6
{[%clk 0:01:06.3]} 24. Qg3 {[%clk 0:01:35.1]} 24... Qd7 {[%clk 0:01:05.3]} 25.
Bf4 {[%clk 0:01:35.4]} 25... Bxf4 {[%clk 0:01:00.8]} 26. Qxf4 {[%clk 0:01:37.3]}
26... Rxe1 {[%clk 0:01:00.6]} 27. Rxe1 {[%clk 0:01:38.7]} 27... d3 {[%clk
0:01:00.5]} 28. Nd2 {[%clk 0:01:38.6]} 28... Re8 {[%clk 0:00:58.5]} 29. Rxe8+
{[%clk 0:01:39.2]} 29... Qxe8 {[%clk 0:01:00.4]} 30. Qe3 {[%clk 0:01:39.8]}
30... Qd8 {[%clk 0:00:59.4]} 31. Qxc5 {[%clk 0:01:37.3]} 1-0

[Event "*** Titled Tuesday Blitz"]
[Site "Chess.com"]
[Date "2019.12.03"]
[Round "1"]
[White "HiHaruka"]
[Black "Aygehovit1992"]
[Result "0-1"]
[WhiteElo "2289"]
[BlackElo "2629"]
[TimeControl "180+2"]
[EndTime "13:06:02 PST"]
[Termination "Aygehovit1992 won by checkmate"]

1. c4 {[%clk 0:02:59.1]} 1... e5 {[%clk 0:02:58.8]} 2. Nc3 {[%clk 0:02:56.8]}
2... Nc6 {[%clk 0:02:58.2]} 3. Nf3 {[%clk 0:02:55.4]} 3... g6 {[%clk 0:02:58.4]}
4. d4 {[%clk 0:02:53.4]} 4... exd4 {[%clk 0:02:59.1]} 5. Nxd4 {[%clk 0:02:55.3]}
5... Bg7 {[%clk 0:03:00.7]} 6. e3 {[%clk 0:02:50.5]} 6... Nge7 {[%clk
0:02:59.2]} 7. Be2 {[%clk 0:02:41.3]} 7... O-O {[%clk 0:02:59.9]} 8. O-O {[%clk
0:02:38.3]} 8... d6 {[%clk 0:02:51.6]} 9. Bf3 {[%clk 0:02:28.3]} 9... Nxd4
{[%clk 0:02:47.4]} 10. exd4 {[%clk 0:02:30.2]} 10... Nf5 {[%clk 0:02:49]} 11.
Be3 {[%clk 0:02:16.9]} 11... Nxe3 {[%clk 0:02:48.6]} 12. fxe3 {[%clk 0:02:09.9]}
12... Re8 {[%clk 0:02:49.3]} 13. e4 {[%clk 0:02:05.9]} 13... c5 {[%clk
0:02:47.8]} 14. dxc5 {[%clk 0:01:27.7]} 14... dxc5 {[%clk 0:02:47.2]} 15. Qd5
{[%clk 0:01:13.6]} 15... Be6 {[%clk 0:02:40.7]} 16. Qxb7 {[%clk 0:01:04.5]}
16... Rb8 {[%clk 0:02:40.5]} 17. Qxa7 {[%clk 0:01:00]} 17... Rxb2 {[%clk
0:02:39.9]} 18. Nd5 {[%clk 0:00:51.8]} 18... Bd4+ {[%clk 0:02:35.2]} 19. Kh1
{[%clk 0:00:51.8]} 19... Qh4 {[%clk 0:02:25.9]} 20. Rab1 {[%clk 0:00:10.6]}
20... Be5 {[%clk 0:02:15.4]} 21. h3 {[%clk 0:00:07.4]} 21... Rxb1 {[%clk
0:02:07]} 22. Rxb1 {[%clk 0:00:07.5]} 22... Bxh3 {[%clk 0:02:08.2]} 23. Kg1
{[%clk 0:00:06.5]} 23... Bd4+ {[%clk 0:02:06.9]} 24. Kh1 {[%clk 0:00:03.5]}
24... Bg4# {[%clk 0:02:07.1]} 0-1

[Event "*** Titled Tuesday Blitz"]
[Site "Chess.com"]
[Date "2019.12.03"]
[Round "1"]
[White "pouya21"]
[Black "MFBerna"]
[Result "1-0"]
[WhiteElo "2707"]
[BlackElo "2340"]
[TimeControl "180+2"]
[EndTime "13:06:05 PST"]
[Termination "pouya21 won by resignation"]

1. e4 {[%clk 0:03:01.9]} 1... c5 {[%clk 0:02:59.9]} 2. Nf3 {[%clk 0:03:03]} 2...
Nc6 {[%clk 0:03:00.3]} 3. Bb5 {[%clk 0:03:02.5]} 3... e6 {[%clk 0:03:00.7]} 4.
O-O {[%clk 0:03:01.3]} 4... Nge7 {[%clk 0:03:01.3]} 5. d4 {[%clk 0:03:02.5]}
5... cxd4 {[%clk 0:03:00.8]} 6. Nxd4 {[%clk 0:03:04.4]} 6... Nxd4 {[%clk
0:03:00.3]} 7. Qxd4 {[%clk 0:03:04.9]} 7... a6 {[%clk 0:03:01.1]} 8. Be2 {[%clk
0:03:04.5]} 8... Nc6 {[%clk 0:03:01.8]} 9. Qe3 {[%clk 0:03:04.3]} 9... d6 {[%clk
0:02:53.6]} 10. Rd1 {[%clk 0:03:03]} 10... Be7 {[%clk 0:02:54.1]} 11. Qg3 {[%clk
0:03:03.9]} 11... Ne5 {[%clk 0:02:27]} 12. Bf4 {[%clk 0:02:55.1]} 12... Bf6
{[%clk 0:02:15.2]} 13. Qa3 {[%clk 0:02:55.8]} 13... Qc7 {[%clk 0:02:01.9]} 14.
Nc3 {[%clk 0:02:43.3]} 14... O-O {[%clk 0:01:59.7]} 15. Qxd6 {[%clk 0:02:38.8]}
15... Qxd6 {[%clk 0:02:00.7]} 16. Rxd6 {[%clk 0:02:40.7]} 16... b5 {[%clk
0:01:57.3]} 17. a3 {[%clk 0:02:39.5]} 17... Bb7 {[%clk 0:01:57.2]} 18. Rad1
{[%clk 0:02:40.4]} 18... Rac8 {[%clk 0:01:53.1]} 19. Rb6 {[%clk 0:02:39.8]}
19... Ng6 {[%clk 0:01:24.2]} 20. Bd6 {[%clk 0:02:36.4]} 20... Bxc3 {[%clk
0:01:01.1]} 21. bxc3 {[%clk 0:02:35.6]} 21... Bxe4 {[%clk 0:00:59]} 22. Bxf8
{[%clk 0:02:36]} 22... Kxf8 {[%clk 0:01:00.6]} 23. Rxa6 {[%clk 0:02:33.6]} 23...
Rxc3 {[%clk 0:00:53.5]} 24. Bxb5 {[%clk 0:02:33.5]} 24... Nf4 {[%clk 0:00:39.9]}
25. f3 {[%clk 0:02:34]} 25... Bd5 {[%clk 0:00:32.3]} 26. Bd3 {[%clk 0:02:32.9]}
26... g5 {[%clk 0:00:24.7]} 27. Rd2 {[%clk 0:02:24]} 27... h5 {[%clk 0:00:22.6]}
28. Kf2 {[%clk 0:02:19.3]} 28... g4 {[%clk 0:00:20.7]} 29. fxg4 {[%clk
0:02:19.5]} 29... hxg4 {[%clk 0:00:22.3]} 30. Kg3 {[%clk 0:02:19.1]} 30... Nxd3
{[%clk 0:00:17.2]} 31. cxd3 {[%clk 0:02:20]} 31... Bc4 {[%clk 0:00:15.4]} 32.
Rc6 {[%clk 0:02:20.5]} 32... Rxd3+ {[%clk 0:00:15.7]} 33. Rxd3 {[%clk
0:02:21.4]} 33... Bxd3 {[%clk 0:00:17.6]} 1-0

[Event "*** Titled Tuesday Blitz"]
[Site "Chess.com"]
[Date "2019.12.03"]
[Round "1"]
[White "ChessBitl"]
[Black "yavrukurt40"]
[Result "0-1"]
[WhiteElo "2379"]
[BlackElo "2753"]
[TimeControl "180+2"]
[EndTime "13:06:06 PST"]
[Termination "yavrukurt40 won by resignation"]

1. e4 {[%clk 0:02:53.1]} 1... g6 {[%clk 0:03:00.4]} 2. d4 {[%clk 0:02:53.6]}
2... Bg7 {[%clk 0:02:59.8]} 3. c4 {[%clk 0:02:55]} 3... d6 {[%clk 0:02:59.1]} 4.
Nc3 {[%clk 0:02:55.3]} 4... Nf6 {[%clk 0:03:00.7]} 5. f3 {[%clk 0:02:54.5]} 5...
O-O {[%clk 0:03:01.1]} 6. Be3 {[%clk 0:02:55.9]} 6... Nbd7 {[%clk 0:02:59.8]} 7.
Qd2 {[%clk 0:02:57.1]} 7... c5 {[%clk 0:03:00.9]} 8. d5 {[%clk 0:02:58.3]} 8...
a6 {[%clk 0:03:02.2]} 9. Bd3 {[%clk 0:02:59.3]} 9... Rb8 {[%clk 0:03:02.5]} 10.
Nge2 {[%clk 0:03:00.4]} 10... Ne5 {[%clk 0:03:03.8]} 11. O-O {[%clk 0:02:59.7]}
11... Bd7 {[%clk 0:03:04.3]} 12. a4 {[%clk 0:02:59.6]} 12... Ne8 {[%clk
0:02:58.4]} 13. b3 {[%clk 0:02:59.1]} 13... Nc7 {[%clk 0:02:55.3]} 14. a5 {[%clk
0:02:56.3]} 14... Nxd3 {[%clk 0:02:52.4]} 15. Qxd3 {[%clk 0:02:45.6]} 15... b5
{[%clk 0:02:54.3]} 16. axb6 {[%clk 0:02:44.8]} 16... Rxb6 {[%clk 0:02:55.9]} 17.
Ra3 {[%clk 0:02:39]} 17... Qb8 {[%clk 0:02:55.4]} 18. Rb1 {[%clk 0:02:31.4]}
18... Qb7 {[%clk 0:02:36.3]} 19. Na4 {[%clk 0:02:26.6]} 19... Bxa4 {[%clk
0:02:37.4]} 20. Rxa4 {[%clk 0:02:25.4]} 20... Rb8 {[%clk 0:02:39]} 21. Nc1
{[%clk 0:02:24.5]} 21... Ne8 {[%clk 0:02:33.5]} 22. f4 {[%clk 0:02:24]} 22...
Nf6 {[%clk 0:02:33.7]} 23. Bd2 {[%clk 0:02:24.5]} 23... Nd7 {[%clk 0:02:22.6]}
24. Ba5 {[%clk 0:02:22.2]} 24... Rb4 {[%clk 0:02:11.2]} 25. Bxb4 {[%clk
0:02:22]} 25... cxb4 {[%clk 0:02:13.1]} 26. Ne2 {[%clk 0:02:17.7]} 26... Nc5
{[%clk 0:02:13.9]} 27. Qd2 {[%clk 0:02:11.2]} 27... Nxa4 {[%clk 0:02:12.4]} 28.
bxa4 {[%clk 0:02:12.7]} 28... Qb6+ {[%clk 0:02:13.7]} 29. Kh1 {[%clk 0:02:12.7]}
29... Qf2 {[%clk 0:02:14.2]} 30. Qd3 {[%clk 0:02:08.6]} 30... b3 {[%clk
0:02:13.4]} 31. e5 {[%clk 0:01:44.7]} 31... dxe5 {[%clk 0:02:08.6]} 32. fxe5
{[%clk 0:01:45.8]} 32... Bxe5 {[%clk 0:02:10.5]} 33. Ng3 {[%clk 0:01:35.2]}
33... b2 {[%clk 0:02:08.8]} 34. Ne4 {[%clk 0:01:29.4]} 34... Qf4 {[%clk
0:02:07.8]} 35. g3 {[%clk 0:01:22.3]} 35... Qc1+ {[%clk 0:02:08.9]} 36. Kg2
{[%clk 0:01:23.8]} 36... Rb3 {[%clk 0:02:09.8]} 37. Qxb3 {[%clk 0:01:15.4]}
37... Qxb1 {[%clk 0:02:10.5]} 38. Nd2 {[%clk 0:01:14.7]} 38... Qc1 {[%clk
0:02:04.8]} 39. Qd3 {[%clk 0:01:14.9]} 39... Qxd2+ {[%clk 0:02:05.4]} 40. Qxd2
{[%clk 0:01:15]} 40... b1=Q {[%clk 0:02:06.9]} 41. c5 {[%clk 0:01:16.3]} 41...
Qe4+ {[%clk 0:02:07.5]} 42. Kh3 {[%clk 0:01:14.9]} 42... Qxa4 {[%clk 0:02:01.3]}
43. d6 {[%clk 0:01:15.4]} 43... exd6 {[%clk 0:02:01.9]} 44. cxd6 {[%clk
0:01:17]} 44... Qd7+ {[%clk 0:02:03.6]} 45. Kg2 {[%clk 0:01:17.3]} 45... Qxd6
{[%clk 0:02:05.5]} 0-1

[Event "*** Titled Tuesday Blitz"]
[Site "Chess.com"]
[Date "2019.12.03"]
[Round "1"]
[White "Dhaydon19"]
[Black "Chempiblinka"]
[Result "1-0"]
[WhiteElo "2632"]
[BlackElo "2293"]
[TimeControl "180+2"]
[EndTime "13:06:10 PST"]
[Termination "Dhaydon19 won by resignation"]

1. e4 {[%clk 0:03:01.9]} 1... c5 {[%clk 0:02:58.1]} 2. Nf3 {[%clk 0:03:02.6]}
2... d6 {[%clk 0:02:59.1]} 3. Bb5+ {[%clk 0:03:03.4]} 3... Bd7 {[%clk
0:02:59.7]} 4. Bxd7+ {[%clk 0:03:04.4]} 4... Nxd7 {[%clk 0:03:00.1]} 5. d4
{[%clk 0:03:06]} 5... cxd4 {[%clk 0:03:00.9]} 6. Qxd4 {[%clk 0:03:07.9]} 6...
Ngf6 {[%clk 0:02:58.7]} 7. c3 {[%clk 0:03:06.1]} 7... Qb6 {[%clk 0:02:56.6]} 8.
Nbd2 {[%clk 0:03:05.2]} 8... e5 {[%clk 0:02:52.1]} 9. Qxb6 {[%clk 0:02:59.1]}
9... Nxb6 {[%clk 0:02:54]} 10. O-O {[%clk 0:02:59.7]} 10... Be7 {[%clk
0:02:46.5]} 11. Rd1 {[%clk 0:02:58.7]} 11... O-O {[%clk 0:02:46.8]} 12. c4
{[%clk 0:02:57.1]} 12... Rfc8 {[%clk 0:02:46.6]} 13. b3 {[%clk 0:02:57.6]} 13...
a5 {[%clk 0:02:47.6]} 14. Bb2 {[%clk 0:02:55.1]} 14... a4 {[%clk 0:02:48.7]} 15.
Ne1 {[%clk 0:02:53.3]} 15... Nfd7 {[%clk 0:02:47.1]} 16. Nd3 {[%clk 0:02:53.1]}
16... g6 {[%clk 0:02:38.4]} 17. Nf3 {[%clk 0:02:45.4]} 17... f6 {[%clk
0:02:36.4]} 18. Nfe1 {[%clk 0:02:37.5]} 18... Kf7 {[%clk 0:02:34.2]} 19. f3
{[%clk 0:02:36.3]} 19... Bf8 {[%clk 0:02:33.5]} 20. Nc2 {[%clk 0:02:36.8]} 20...
d5 {[%clk 0:02:28]} 21. exd5 {[%clk 0:02:36.2]} 21... Nxd5 {[%clk 0:02:29.1]}
22. Nxe5+ {[%clk 0:02:36.3]} 22... Nxe5 {[%clk 0:02:29.6]} 23. Rxd5 {[%clk
0:02:29.6]} 23... axb3 {[%clk 0:02:25.3]} 24. axb3 {[%clk 0:02:30.2]} 24...
Rxa1+ {[%clk 0:02:26.1]} 25. Bxa1 {[%clk 0:02:31.1]} 25... Bc5+ {[%clk
0:02:26.4]} 26. Kf1 {[%clk 0:02:30.3]} 26... Ke6 {[%clk 0:02:24.9]} 27. Bxe5
{[%clk 0:02:15.4]} 27... fxe5 {[%clk 0:02:25.6]} 28. Ne1 {[%clk 0:02:17.1]}
28... Bd4 {[%clk 0:02:12.2]} 29. Nd3 {[%clk 0:02:17.7]} 29... Ra8 {[%clk
0:02:09.5]} 30. f4 {[%clk 0:02:15.7]} 30... Ra1+ {[%clk 0:02:09.2]} 31. Ke2
{[%clk 0:02:15.9]} 31... Ra2+ {[%clk 0:02:10.5]} 32. Kf3 {[%clk 0:02:15.5]}
32... Ra3 {[%clk 0:02:02.7]} 33. fxe5 {[%clk 0:02:14.3]} 33... Bg1 {[%clk
0:02:01.9]} 34. Rb5 {[%clk 0:02:10.8]} 34... b6 {[%clk 0:02:00]} 35. Nf4+ {[%clk
0:02:08.9]} 35... Kd7 {[%clk 0:02:00.2]} 36. e6+ {[%clk 0:02:04.8]} 36... Kc6
{[%clk 0:02:01.2]} 37. e7 {[%clk 0:02:01.4]} 37... Ra8 {[%clk 0:02:01.8]} 38.
Nd5 {[%clk 0:01:58.2]} 38... Re8 {[%clk 0:02:00.6]} 39. b4 {[%clk 0:01:52.5]}
39... Kd6 {[%clk 0:01:53.8]} 40. Nxb6 {[%clk 0:01:50.1]} 40... Bxb6 {[%clk
0:01:51.2]} 41. Rxb6+ {[%clk 0:01:51.1]} 41... Kxe7 {[%clk 0:01:53.1]} 42. Rb7+
{[%clk 0:01:52.1]} 42... Kd6 {[%clk 0:01:54.3]} 43. Rxh7 {[%clk 0:01:52.6]}
43... Rb8 {[%clk 0:01:54.6]} 44. c5+ {[%clk 0:01:52.9]} 44... Kd5 {[%clk
0:01:55.9]} 45. Rh4 {[%clk 0:01:54.5]} 45... g5 {[%clk 0:01:56.3]} 46. Rg4
{[%clk 0:01:55.6]} 46... Ke6 {[%clk 0:01:57.6]} 47. Rd4 {[%clk 0:01:54.1]} 47...
Ra8 {[%clk 0:01:57.9]} 48. c6 {[%clk 0:01:54.4]} 48... Ra3+ {[%clk 0:01:58.5]}
49. Kg4 {[%clk 0:01:52.7]} 49... Rc3 {[%clk 0:01:59.5]} 50. b5 {[%clk
0:01:53.6]} 50... Rc5 {[%clk 0:02:00.3]} 51. Rb4 {[%clk 0:01:52.7]} 1-0

[Event "*** Titled Tuesday Blitz"]
[Site "Chess.com"]
[Date "2019.12.03"]
[Round "1"]
[White "Sanan_Sjugirov"]
[Black "GameOverBro"]
[Result "1-0"]
[WhiteElo "2908"]
[BlackElo "2485"]
[TimeControl "180+2"]
[EndTime "13:06:20 PST"]
[Termination "Sanan_Sjugirov won by resignation"]

1. d4 {[%clk 0:03:01.9]} 1... d6 {[%clk 0:02:24.1]} 2. e4 {[%clk 0:02:54.4]}
2... Nf6 {[%clk 0:02:25.3]} 3. Nc3 {[%clk 0:02:55.2]} 3... e5 {[%clk 0:02:26.9]}
4. Nf3 {[%clk 0:02:55.6]} 4... Nbd7 {[%clk 0:02:27.9]} 5. Rg1 {[%clk 0:02:52.5]}
5... c6 {[%clk 0:02:26.8]} 6. g4 {[%clk 0:02:53.2]} 6... exd4 {[%clk 0:02:28.1]}
7. Nxd4 {[%clk 0:02:46.5]} 7... g6 {[%clk 0:01:52.5]} 8. g5 {[%clk 0:02:42.9]}
8... Nh5 {[%clk 0:01:51.9]} 9. Be2 {[%clk 0:02:44.2]} 9... Ng7 {[%clk
0:01:52.4]} 10. Be3 {[%clk 0:02:39.9]} 10... Nc5 {[%clk 0:01:47.6]} 11. Qd2
{[%clk 0:02:38.1]} 11... Nge6 {[%clk 0:01:38.5]} 12. O-O-O {[%clk 0:02:34.5]}
12... Qa5 {[%clk 0:01:33]} 13. f4 {[%clk 0:02:31.4]} 13... Na4 {[%clk
0:01:11.5]} 14. Nxa4 {[%clk 0:02:14.6]} 14... Qxa4 {[%clk 0:01:11.8]} 15. a3
{[%clk 0:01:50.4]} 15... Bd7 {[%clk 0:01:02.8]} 16. Nxe6 {[%clk 0:01:36.8]}
16... Bxe6 {[%clk 0:00:58.3]} 17. Bd4 {[%clk 0:01:37.7]} 17... Rg8 {[%clk
0:00:58.5]} 18. Rgf1 {[%clk 0:01:25.8]} 18... O-O-O {[%clk 0:00:48]} 19. f5
{[%clk 0:01:23.2]} 19... Bc4 {[%clk 0:00:42.7]} 20. Bxc4 {[%clk 0:01:03.7]}
20... Qxc4 {[%clk 0:00:44.6]} 21. Bxa7 {[%clk 0:01:03]} 21... Qxe4 {[%clk
0:00:43.6]} 22. Bb6 {[%clk 0:01:01.9]} 22... Re8 {[%clk 0:00:39.4]} 23. Rde1
{[%clk 0:01:00.3]} 1-0